[Event "GER-ch Youth U16w 2019"]
[Site "Willingen"]
[Date "2019.06.10"]
[Round "3.5"]
[White "Klemke, Kassandra"]
[Black "Glinzner, Alva"]
[Result "1/2-1/2"]
[ECO "B43"]
[WhiteElo "1662"]
[BlackElo "1833"]
[Annotator "NA"]
[PlyCount "57"]
[EventDate "2019.06.07"]
[EventType "swiss"]
[EventRounds "9"]
[EventCountry "GER"]
[SourceTitle "playchess.com"]
[Source "ChessBase"]
[SourceQuality "1"]
[TimeControl "40/5400+30:1800+30"]

1. e4 {[%emt 0:00:00]} c5 {[%emt 0:00:00]} 2. Nf3 {[%emt 0:00:00]} e6 {[%emt 0:00:00]} 3. d4 {[%emt 0:00:00]} cxd4 {[%emt 0:00:00]} 4. Nxd4 {[%emt 0:00:00]} a6 {[%emt 0:00:00]} 5. Nc3 {[%emt 0:00:00]} Qc7 {[%emt 0:00:00]} 6. g3 {[%emt 0:00:05]} Bb4 {[%emt 0:00:28]} 7. Bd2 {[%emt 0:05:33]} Nf6 {[%emt 0:01:44]} 8. Bg2 {[%emt 0:00:51]} O-O {[%emt 0:02:17]} 9. O-O {[%emt 0:01:04]} Be7 {[%emt 0:00:25]} 10. Re1 {[%emt 0:06:10]} d6 {[%emt 0:00:33]} 11. Qe2 {[%emt 0:06:33]} Nbd7 {[%emt 0:02:12]} 12. Rad1 {[%emt 0:06:54]} Rb8 {[%emt 0:03:26]} 13. Nf3 {[%emt 0:20:17]} b5 {[%emt 0:07:04]} 14. e5 {[%emt 0:17:03]} dxe5 {[%emt 0:01:31]} 15. Nxe5 {[%emt 0:00:50]} Nxe5 {[%emt 0:00:54]} 16. Qxe5 {[%emt 0:00:33]} Bd6 {[%emt 0:01:02]} 17. Qe2 {[%emt 0:01:12]} Bb7 {[%emt 0:05:16]} 18. Bg5 {[%emt 0:10:58]} Bxg2 {[%emt 0:11:45]} 19. Kxg2 {[%emt 0:00:10]} Be7 {[%emt 0:03:29]} 20. Bf4 {[%emt 0:01:52]} Qc6+ {[%emt 0:00:18]} 21. Kg1 {[%emt 0:00:47]} Rbc8 {[%emt 0:00:40]} 22. Rd2 {[%emt 0:04:09]} Bb4 {[%emt 0:04:55]} 23. Be5 {[%emt 0:04:22]} Ne8 {[%emt 0:02:51]} 24. Qg4 {[%emt 0:02:56]} Be7 {[%emt 0:01:41]} 25. Red1 {[%emt 0:04:15]} Bf6 {[%emt 0:06:00]} 26. Bxf6 {[%emt 0:00:39]} Nxf6 {[%emt 0:00:04]} 27. Qf4 {[%emt 0:02:23]} Qb7 {[%emt 0:01:03]} 28. a3 {[%emt 0:01:37]} h6 {[%emt 0:01:28]} 29. h4 {[%emt 0:00:29] normal} 1/2-1/2

[Event "GER-ch Youth U16w 2019"]
[Site "Willingen"]
[Date "2019.06.10"]
[Round "3.6"]
[White "Khamenya, Vitalia"]
[Black "Meijerink, Inken"]
[Result "1-0"]
[ECO "B38"]
[WhiteElo "1877"]
[BlackElo "1681"]
[Annotator "NA"]
[PlyCount "46"]
[EventDate "2019.06.07"]
[EventType "swiss"]
[EventRounds "9"]
[EventCountry "GER"]
[SourceTitle "playchess.com"]
[Source "ChessBase"]
[SourceQuality "1"]
[TimeControl "40/5400+30:1800+30"]

1. e4 {[%emt 0:00:00]} c5 {[%emt 0:00:00]} 2. Nf3 {[%emt 0:00:00]} Nc6 {[%emt 0:00:00]} 3. d4 {[%emt 0:00:00]} cxd4 {[%emt 0:00:00]} 4. Nxd4 {[%emt 0:00:00]} g6 {[%emt 0:00:21]} 5. c4 {[%emt 0:00:50]} Bg7 {[%emt 0:00:42]} 6. Be3 {[%emt 0:00:07]} Nf6 {[%emt 0:01:01]} 7. Nc3 {[%emt 0:00:32]} O-O {[%emt 0:00:50]} 8. Be2 {[%emt 0:00:36]} d6 {[%emt 0:02:04]} 9. O-O {[%emt 0:00:12]} Bd7 10. Nc2 {[%emt 0:01:36]} Rc8 {[%emt 0:11:56]} 11. f3 {[%emt 0:01:21]} Ne8 {[%emt 0:07:49]} 12. Qd2 {[%emt 0:04:54]} Nc7 {[%emt 0:14:40]} 13. Rac1 {[%emt 0:02:30]} b6 {[%emt 0:02:17]} 14. b3 {[%emt 0:03:37]} Be6 {[%emt 0:07:29]} 15. Nd5 {[%emt 0:01:24]} Bxd5 {[%emt 0:01:15]} 16. cxd5 {[%emt 0:00:58]} Ne5 {[%emt 0:00:10]} 17. Nd4 {[%emt 0:02:42]} a6 {[%emt 0:04:21]} 18. f4 {[%emt 0:06:26]} Nd7 {[%emt 0:00:57]} 19. Nc6 {[%emt 0:00:33]} Qe8 {[%emt 0:00:08]} 20. Na7 {[%emt 0:01:50]} Ra8 {[%emt 0:05:17]} 21. Rxc7 {[%emt 0:01:37]} Qd8 {[%emt 0:00:08]} 22. Rb7 {[%emt 0:15:36]} Bf6 {[%emt 0:11:51]} 23. Nc6 {[%emt 0:03:16]} Qe8 {[%emt 0:03:06] normal} 1-0

[Event "GER-ch Youth U16w 2019"]
[Site "Willingen"]
[Date "2019.06.10"]
[Round "3.7"]
[White "Basovskiy, Jana"]
[Black "Schneider, Katharina"]
[Result "1/2-1/2"]
[ECO "C54"]
[WhiteElo "1761"]
[BlackElo "1784"]
[Annotator "NA"]
[PlyCount "47"]
[EventDate "2019.06.07"]
[EventType "swiss"]
[EventRounds "9"]
[EventCountry "GER"]
[SourceTitle "playchess.com"]
[Source "ChessBase"]
[SourceQuality "1"]
[TimeControl "40/5400+30:1800+30"]

1. e4 {[%emt 0:00:00]} e5 {[%emt 0:00:00]} 2. Nf3 {[%emt 0:00:00]} Nc6 {[%emt 0:00:00]} 3. Bc4 {[%emt 0:00:00]} Bc5 {[%emt 0:00:00]} 4. c3 {[%emt 0:00:00]} Nf6 {[%emt 0:00:04]} 5. d3 {[%emt 0:00:00]} O-O {[%emt 0:00:22]} 6. Nbd2 {[%emt 0:01:06]} d5 {[%emt 0:00:38]} 7. Bb3 {[%emt 0:01:02]} dxe4 {[%emt 0:15:05]} 8. Nxe4 {[%emt 0:12:25]} Be7 {[%emt 0:12:52]} 9. O-O {[%emt 0:04:36]} Nd5 {[%emt 0:01:42]} 10. Re1 {[%emt 0:08:13]} Nb6 {[%emt 0:15:19]} 11. a4 {[%emt 0:08:39]} Bg4 {[%emt 0:06:12]} 12. h3 {[%emt 0:05:07]} Bf5 {[%emt 0:03:59]} 13. Bc2 {[%emt 0:07:03]} Bd6 {[%emt 0:02:46]} 14. Nxd6 {[%emt 0:04:24]} Qxd6 {[%emt 0:02:24]} 15. b4 {[%emt 0:01:24]} f6 {[%emt 0:02:28]} 16. Ba3 {[%emt 0:03:12]} Ne7 {[%emt 0:01:57]} 17. b5 {[%emt 0:04:39]} Qd7 {[%emt 0:02:28]} 18. d4 {[%emt 0:01:25]} Rfe8 {[%emt 0:05:45]} 19. dxe5 {[%emt 0:06:35]} Qxd1 {[%emt 0:01:53]} 20. Bxd1 {[%emt 0:00:06]} Ned5 {[%emt 0:01:01]} 21. Bb3 {[%emt 0:01:33]} Kh8 {[%emt 0:00:15]} 22. exf6 {[%emt 0:07:03]} Nxf6 {[%emt 0:01:51]} 23. Ne5 {[%emt 0:01:20]} Nbd5 {[%emt 0:00:55]} 24. g4 {[%emt 0:06:02] normal} 1/2-1/2

[Event "GER-ch Youth U16w 2019"]
[Site "Willingen"]
[Date "2019.06.10"]
[Round "3.8"]
[White "Rudolph, Eva"]
[Black "Berelowitsch, Dana"]
[Result "0-1"]
[ECO "C15"]
[WhiteElo "1786"]
[BlackElo "1753"]
[Annotator "NA"]
[PlyCount "48"]
[EventDate "2019.06.07"]
[EventType "swiss"]
[EventRounds "9"]
[EventCountry "GER"]
[SourceTitle "playchess.com"]
[Source "ChessBase"]
[SourceQuality "1"]
[TimeControl "40/5400+30:1800+30"]

1. e4 {[%emt 0:00:00]} e6 {[%emt 0:00:00]} 2. d4 {[%emt 0:00:00]} d5 {[%emt 0:00:00]} 3. Nc3 {[%emt 0:01:43]} Bb4 {[%emt 0:00:00]} 4. exd5 {[%emt 0:04:02]} exd5 {[%emt 0:00:02]} 5. Bd3 {[%emt 0:00:52]} Nc6 {[%emt 0:01:28]} 6. a3 {[%emt 0:03:51]} Ba5 {[%emt 0:05:00]} 7. Nge2 {[%emt 0:08:54]} Nf6 {[%emt 0:02:54]} 8. O-O {[%emt 0:06:18]} Be6 {[%emt 0:04:00]} 9. Bg5 {[%emt 0:06:14]} h6 {[%emt 0:02:07]} 10. Be3 {[%emt 0:07:50]} Qd7 {[%emt 0:06:58]} 11. Re1 {[%emt 0:05:55]} O-O {[%emt 0:01:46]} 12. Ng3 {[%emt 0:06:05]} Rfe8 {[%emt 0:03:27]} 13. b4 {[%emt 0:03:33]} Bb6 {[%emt 0:00:59]} 14. Nce2 {[%emt 0:00:40]} a5 {[%emt 0:06:08]} 15. c3 {[%emt 0:03:03]} Ne7 {[%emt 0:02:39]} 16. Qc2 {[%emt 0:03:49]} axb4 {[%emt 0:05:20]} 17. axb4 {[%emt 0:00:16]} c6 {[%emt 0:05:34]} 18. Nf4 {[%emt 0:04:06]} Rxa1 {[%emt 0:04:10]} 19. Rxa1 {[%emt 0:00:10]} Bg4 {[%emt 0:06:17]} 20. f3 {[%emt 0:03:36]} Be6 {[%emt 0:04:39]} 21. Nfh5 {[%emt 0:02:35]} Nxh5 22. Nxh5 {[%emt 0:00:14]} Nf5 {[%emt 0:04:55]} 23. Bf2 {[%emt 0:05:30]} Bc7 {[%emt 0:02:57]} 24. g4 {[%emt 0:02:52]} Ne7 {[%emt 0:12:04] normal} 0-1

[Event "GER-ch Youth U16w 2019"]
[Site "Willingen"]
[Date "2019.06.10"]
[Round "3.9"]
[White "Sinnhoefer, Lilian"]
[Black "Stowicek, Yara Mathilda"]
[Result "0-1"]
[ECO "C68"]
[WhiteElo "1396"]
[BlackElo "1692"]
[Annotator "NA"]
[PlyCount "55"]
[EventDate "2019.06.07"]
[EventType "swiss"]
[EventRounds "9"]
[EventCountry "GER"]
[SourceTitle "playchess.com"]
[Source "ChessBase"]
[SourceQuality "1"]
[TimeControl "40/5400+30:1800+30"]

1. e4 {[%emt 0:00:00]} e5 {[%emt 0:00:00]} 2. Nf3 {[%emt 0:00:00]} Nc6 {[%emt 0:00:00]} 3. Bb5 {[%emt 0:00:00]} a6 {[%emt 0:00:12]} 4. Bxc6 {[%emt 0:00:07]} dxc6 {[%emt 0:00:21]} 5. O-O {[%emt 0:00:12]} Bg4 {[%emt 0:00:19]} 6. h3 {[%emt 0:00:15]} h5 {[%emt 0:00:31]} 7. d3 {[%emt 0:00:24]} Qf6 {[%emt 0:00:31]} 8. Nbd2 {[%emt 0:00:16]} Bd6 {[%emt 0:00:30]} 9. Re1 {[%emt 0:00:41]} Be6 {[%emt 0:00:29]} 10. d4 {[%emt 0:17:57]} Qg6 {[%emt 0:24:24]} 11. Nh4 {[%emt 0:04:46]} Qh7 {[%emt 0:02:38]} 12. Ndf3 {[%emt 0:07:34]} f6 {[%emt 0:07:13]} 13. dxe5 {[%emt 0:15:15]} Bxe5 {[%emt 0:03:28]} 14. Nxe5 {[%emt 0:07:04]} fxe5 {[%emt 0:00:15]} 15. Nf3 {[%emt 0:02:50]} Bg4 {[%emt 0:02:41]} 16. Kf1 {[%emt 0:05:32]} Bxf3 {[%emt 0:05:07]} 17. Qxf3 {[%emt 0:00:39]} O-O-O {[%emt 0:01:33]} 18. Bg5 {[%emt 0:03:23]} Re8 {[%emt 0:01:55]} 19. Rad1 {[%emt 0:03:25]} Qg6 {[%emt 0:07:16]} 20. Qf5+ {[%emt 0:09:15]} Qxf5 {[%emt 0:00:28]} 21. exf5 {[%emt 0:00:42]} Nf6 {[%emt 0:00:24]} 22. f4 {[%emt 0:01:39]} exf4 {[%emt 0:01:25]} 23. Rxe8+ {[%emt 0:01:33]} Rxe8 {[%emt 0:00:13]} 24. Bxf6 {[%emt 0:01:58]} gxf6 {[%emt 0:00:27]} 25. Rd4 {[%emt 0:01:07]} f3 {[%emt 0:02:56]} 26. gxf3 {[%emt 0:00:49]} Re5 {[%emt 0:01:04]} 27. f4 {[%emt 0:05:16]} Rxf5 {[%emt 0:01:28]} 28. Kf2 {[%emt 0:00:37] normal} 0-1

[Event "GER-ch Youth U16w 2019"]
[Site "Willingen"]
[Date "2019.06.10"]
[Round "3.10"]
[White "Huppert, Anna"]
[Black "Sokolowski, Judith"]
[Result "0-1"]
[ECO "B23"]
[WhiteElo "1515"]
[BlackElo "1749"]
[Annotator "NA"]
[PlyCount "39"]
[EventDate "2019.06.07"]
[EventType "swiss"]
[EventRounds "9"]
[EventCountry "GER"]
[SourceTitle "playchess.com"]
[Source "ChessBase"]
[SourceQuality "1"]
[TimeControl "40/5400+30:1800+30"]

1. e4 {[%emt 0:00:00]} c5 {[%emt 0:00:00]} 2. Nc3 {[%emt 0:00:00]} e6 {[%emt 0:00:00]} 3. f4 {[%emt 0:00:00]} d5 {[%emt 0:00:04]} 4. e5 {[%emt 0:02:41]} Nc6 {[%emt 0:01:29]} 5. Bb5 {[%emt 0:02:50]} Nge7 {[%emt 0:00:14]} 6. Nf3 {[%emt 0:01:58]} a6 {[%emt 0:00:34]} 7. Bxc6+ {[%emt 0:01:38]} Nxc6 {[%emt 0:00:05]} 8. O-O {[%emt 0:02:15]} Be7 {[%emt 0:00:26]} 9. d3 {[%emt 0:01:03]} O-O {[%emt 0:00:24]} 10. Qe1 {[%emt 0:01:41]} b5 {[%emt 0:02:31]} 11. Ne2 {[%emt 0:03:52]} Bb7 {[%emt 0:06:15]} 12. Ng3 {[%emt 0:05:22]} Qd7 {[%emt 0:23:06]} 13. Nh5 {[%emt 0:11:56]} f5 {[%emt 0:06:18]} 14. exf6 {[%emt 0:03:55]} Bxf6 {[%emt 0:00:57]} 15. c3 {[%emt 0:12:45]} d4 {[%emt 0:14:40]} 16. cxd4 {[%emt 0:11:35]} Bxd4+ {[%emt 0:01:18]} 17. Nxd4 {[%emt 0:06:38]} Nxd4 {[%emt 0:01:57]} 18. Qd1 {[%emt 0:03:48]} Rad8 {[%emt 0:11:49]} 19. Be3 {[%emt 0:04:55]} Qd5 {[%emt 0:02:57]} 20. Qg4 {[%emt 0:10:25] normal} 0-1

[Event "GER-ch Youth U16w 2019"]
[Site "Willingen"]
[Date "2019.06.10"]
[Round "3.11"]
[White "Wucherer, Sophie"]
[Black "Zell, Hannah"]
[Result "0-1"]
[ECO "A80"]
[WhiteElo "1496"]
[BlackElo "1473"]
[Annotator "NA"]
[PlyCount "46"]
[EventDate "2019.06.07"]
[EventType "swiss"]
[EventRounds "9"]
[EventCountry "GER"]
[SourceTitle "playchess.com"]
[Source "ChessBase"]
[SourceQuality "1"]
[TimeControl "40/5400+30:1800+30"]

1. d4 {[%emt 0:00:00]} f5 {[%emt 0:00:00]} 2. Nf3 {[%emt 0:00:09]} Nf6 {[%emt 0:00:00]} 3. Bf4 {[%emt 0:00:33]} g6 {[%emt 0:00:10]} 4. c4 {[%emt 0:02:08]} Bg7 {[%emt 0:00:37]} 5. Nc3 {[%emt 0:00:50]} O-O {[%emt 0:01:04]} 6. e3 {[%emt 0:02:37]} d6 {[%emt 0:01:28]} 7. Be2 {[%emt 0:21:06]} Nbd7 {[%emt 0:02:41]} 8. Qc2 {[%emt 0:19:10]} a6 {[%emt 0:05:43]} 9. Rd1 {[%emt 0:02:27]} Qe8 {[%emt 0:02:53]} 10. d5 {[%emt 0:02:37]} e5 {[%emt 0:08:51]} 11. dxe6 {[%emt 0:00:27]} Qxe6 {[%emt 0:00:18]} 12. Nd5 {[%emt 0:04:25]} Nxd5 {[%emt 0:07:03]} 13. cxd5 {[%emt 0:00:10]} Qf6 {[%emt 0:01:22]} 14. Qxc7 {[%emt 0:06:28]} Qxb2 {[%emt 0:02:29]} 15. Nd4 {[%emt 0:02:58]} Bxd4 {[%emt 0:13:11]} 16. Rxd4 {[%emt 0:00:36]} Nf6 {[%emt 0:03:18]} 17. Bh6 {[%emt 0:02:49]} Bd7 {[%emt 0:03:33]} 18. Bf3 {[%emt 0:09:44]} Rac8 {[%emt 0:04:43]} 19. Qa5 {[%emt 0:01:07]} Rc1+ {[%emt 0:02:59]} 20. Bd1 {[%emt 0:02:47]} Bb5 {[%emt 0:15:21]} 21. Qd2 {[%emt 0:02:16]} Qxd2+ {[%emt 0:00:12]} 22. Rxd2 {[%emt 0:00:26]} Rfc8 {[%emt 0:00:29]} 23. f3 {[%emt 0:00:18]} Bc4 {[%emt 0:01:18] normal} 0-1

[Event "GER-ch Youth U16w 2019"]
[Site "Willingen"]
[Date "2019.06.10"]
[Round "3.12"]
[White "Jacoby, Angelina"]
[Black "Peschel, Julia"]
[Result "0-1"]
[ECO "D30"]
[WhiteElo "1412"]
[BlackElo "1275"]
[Annotator "NA"]
[PlyCount "57"]
[EventDate "2019.06.07"]
[EventType "swiss"]
[EventRounds "9"]
[EventCountry "GER"]
[SourceTitle "playchess.com"]
[Source "ChessBase"]
[SourceQuality "1"]
[TimeControl "40/5400+30:1800+30"]

1. d4 {[%emt 0:00:00]} d5 {[%emt 0:00:00]} 2. c4 {[%emt 0:00:00]} e6 {[%emt 0:00:00]} 3. e3 {[%emt 0:01:13]} Nf6 {[%emt 0:00:00]} 4. Nf3 {[%emt 0:00:25]} Be7 {[%emt 0:00:22]} 5. Nc3 {[%emt 0:02:27]} O-O {[%emt 0:00:27]} 6. Be2 {[%emt 0:00:45]} a6 {[%emt 0:02:47]} 7. O-O {[%emt 0:03:21]} dxc4 {[%emt 0:00:38]} 8. Bxc4 {[%emt 0:00:26]} b5 {[%emt 0:00:17]} 9. Bd3 {[%emt 0:02:18]} Bb7 {[%emt 0:01:07]} 10. a3 {[%emt 0:02:34]} Nbd7 {[%emt 0:02:45]} 11. Qe2 {[%emt 0:02:51]} c5 {[%emt 0:04:44]} 12. b3 {[%emt 0:03:27]} Rc8 {[%emt 0:02:48]} 13. Bb2 {[%emt 0:01:52]} Qc7 {[%emt 0:09:01]} 14. h3 {[%emt 0:06:09]} Rfd8 {[%emt 0:05:37]} 15. Rfd1 {[%emt 0:03:32]} Nb6 {[%emt 0:20:23]} 16. dxc5 {[%emt 0:02:28]} Qxc5 {[%emt 0:02:57]} 17. Rac1 {[%emt 0:05:48]} Qh5 {[%emt 0:00:35]} 18. Nd4 {[%emt 0:03:13]} Qg5 {[%emt 0:04:56]} 19. Nf3 {[%emt 0:09:12]} Qh6 {[%emt 0:01:46]} 20. Nh2 {[%emt 0:05:46]} Bd6 {[%emt 0:01:29]} 21. Ng4 {[%emt 0:02:04]} Nxg4 {[%emt 0:05:46]} 22. Qxg4 {[%emt 0:00:15]} f5 {[%emt 0:05:48]} 23. Qe2 {[%emt 0:00:23]} Qg5 {[%emt 0:00:23]} 24. Qf1 {[%emt 0:03:39]} f4 {[%emt 0:08:16]} 25. exf4 {[%emt 0:05:04]} Qxf4 {[%emt 0:01:43]} 26. g3 Qf3 27. Kh2 {[%emt 0:04:31]} h5 {[%emt 0:04:29]} 28. Be2 {[%emt 0:01:17]} Qf5 {[%emt 0:00:56]} 29. Bd3 {[%emt 0:01:46] normal} 0-1

[Event "GER-ch Youth U16w 2019"]
[Site "Willingen"]
[Date "2019.06.10"]
[Round "3.13"]
[White "Dietz, Helena"]
[Black "Genova, Magdalina"]
[Result "1/2-1/2"]
[ECO "B23"]
[WhiteElo "1534"]
[BlackElo "1421"]
[Annotator "NA"]
[PlyCount "30"]
[EventDate "2019.06.07"]
[EventType "swiss"]
[EventRounds "9"]
[EventCountry "GER"]
[SourceTitle "playchess.com"]
[Source "ChessBase"]
[SourceQuality "1"]
[TimeControl "40/5400+30:1800+30"]

1. e4 {[%emt 0:00:00]} c5 {[%emt 0:00:00]} 2. Nc3 {[%emt 0:00:00]} d6 {[%emt 0:00:00]} 3. f4 {[%emt 0:00:23]} Nf6 {[%emt 0:02:18]} 4. Bb5+ {[%emt 0:01:42]} Nbd7 {[%emt 0:04:23]} 5. Nf3 {[%emt 0:02:35]} e6 {[%emt 0:01:26]} 6. O-O {[%emt 0:06:38]} Be7 {[%emt 0:02:53]} 7. Bc4 {[%emt 0:16:08]} a6 {[%emt 0:02:04]} 8. a4 {[%emt 0:02:41]} b6 {[%emt 0:04:03]} 9. Qe1 {[%emt 0:01:57]} Bb7 {[%emt 0:04:08]} 10. d3 {[%emt 0:10:43]} d5 {[%emt 0:14:31]} 11. Bb3 {[%emt 0:06:34]} O-O {[%emt 0:04:25]} 12. f5 {[%emt 0:10:35]} h6 {[%emt 0:19:57]} 13. Qg3 {[%emt 0:05:07]} Kh7 {[%emt 0:22:04]} 14. fxe6 {[%emt 0:14:16]} fxe6 {[%emt 0:00:53]} 15. Qh3 {[%emt 0:00:37]} Ng8 {[%emt 0:02:27] normal} 1/2-1/2

[Event "GER-ch Youth U16w 2019"]
[Site "Willingen"]
[Date "2019.06.11"]
[Round "4.2"]
[White "Bardorz, Jana"]
[Black "Brunner, Sophia"]
[Result "1-0"]
[ECO "C02"]
[WhiteElo "1769"]
[BlackElo "1839"]
[Annotator "NA"]
[PlyCount "75"]
[EventDate "2019.06.07"]
[EventType "swiss"]
[EventRounds "9"]
[EventCountry "GER"]
[SourceTitle "playchess.com"]
[Source "ChessBase"]
[SourceQuality "1"]
[TimeControl "40/5400+30:1800+30"]

1. e4 {[%emt 0:00:00]} e6 {[%emt 0:00:00]} 2. d4 {[%emt 0:00:00]} d5 3. e5 c5 {[%emt 0:00:00]} 4. c3 {[%emt 0:00:00]} Nc6 {[%emt 0:00:18]} 5. Nf3 {[%emt 0:00:00]} Qb6 {[%emt 0:04:06]} 6. a3 {[%emt 0:04:13]} Bd7 {[%emt 0:00:30]} 7. b4 cxd4 {[%emt 0:14:52]} 8. cxd4 {[%emt 0:01:00]} Rc8 9. Bb2 Nge7 {[%emt 0:10:23]} 10. Nc3 {[%emt 0:09:12]} Nf5 {[%emt 0:06:02]} 11. Na4 {[%emt 0:04:46]} Qd8 {[%emt 0:00:33]} 12. Bd3 {[%emt 0:02:39]} Be7 {[%emt 0:04:53]} 13. O-O {[%emt 0:02:41]} b6 {[%emt 0:04:22]} 14. Nc3 {[%emt 0:08:54]} Nh4 {[%emt 0:18:41]} 15. Nxh4 {[%emt 0:04:54]} Bxh4 {[%emt 0:00:06]} 16. f4 {[%emt 0:06:30]} Nxd4 {[%emt 0:14:42]} 17. Ba6 {[%emt 0:10:38]} Nf5 {[%emt 0:00:04]} 18. Bxc8 Qxc8 {[%emt 0:00:04]} 19. Rf3 {[%emt 0:07:19]} Nh6 {[%emt 0:06:46]} 20. Ne2 {[%emt 0:03:58]} O-O {[%emt 0:01:50]} 21. Nd4 {[%emt 0:01:40]} f5 {[%emt 0:01:29]} 22. Rc3 {[%emt 0:04:13]} Qb7 {[%emt 0:03:35]} 23. Rac1 {[%emt 0:01:32]} Bd8 {[%emt 0:03:05]} 24. b5 {[%emt 0:03:56]} a6 {[%emt 0:00:30]} 25. a4 {[%emt 0:00:30]} Ng4 {[%emt 0:00:30]} 26. h3 {[%emt 0:00:30]} Nh6 {[%emt 0:00:30]} 27. Nc6 {[%emt 0:00:30]} Re8 {[%emt 0:00:30]} 28. Ba3 {[%emt 0:00:30]} Bxc6 {[%emt 0:00:30]} 29. bxc6 {[%emt 0:00:30]} Qc7 {[%emt 0:00:30]} 30. Bd6 {[%emt 0:00:30]} Qc8 {[%emt 0:00:30]} 31. c7 {[%emt 0:00:30]} Be7 {[%emt 0:00:30]} 32. Qb3 {[%emt 0:00:30]} Nf7 {[%emt 0:00:30]} 33. Qxb6 {[%emt 0:00:30]} g6 {[%emt 0:00:30]} 34. Bxe7 {[%emt 0:00:30]} Rxe7 {[%emt 0:00:30]} 35. Qb8 {[%emt 0:00:30]} Re8 {[%emt 0:00:30]} 36. Qxc8 {[%emt 0:00:30]} Rxc8 {[%emt 0:00:30]} 37. Rb3 {[%emt 0:00:30]} Kf8 {[%emt 0:00:30]} 38. Rb8 {[%emt 0:00:30] normal} 1-0

[Event "GER-ch Youth U16w 2019"]
[Site "Willingen"]
[Date "2019.06.11"]
[Round "4.3"]
[White "Fock, Amina"]
[Black "Khamenya, Vitalia"]
[Result "1-0"]
[ECO "C77"]
[WhiteElo "1723"]
[BlackElo "1877"]
[Annotator "NA"]
[PlyCount "66"]
[EventDate "2019.06.07"]
[EventType "swiss"]
[EventRounds "9"]
[EventCountry "GER"]
[SourceTitle "playchess.com"]
[Source "ChessBase"]
[SourceQuality "1"]
[TimeControl "40/5400+30:1800+30"]

1. e4 {[%emt 0:00:00]} e5 {[%emt 0:00:00]} 2. Nf3 {[%emt 0:00:00]} Nc6 3. Bb5 {[%emt 0:00:00]} a6 {[%emt 0:00:00]} 4. Ba4 {[%emt 0:00:00]} Nf6 {[%emt 0:00:00]} 5. d3 {[%emt 0:00:00]} b5 {[%emt 0:00:00]} 6. Bb3 {[%emt 0:00:00]} Bc5 {[%emt 0:00:07]} 7. Nc3 {[%emt 0:00:19]} d6 {[%emt 0:01:14]} 8. Nd5 {[%emt 0:00:25]} O-O 9. c3 {[%emt 0:06:49]} h6 10. O-O Na5 {[%emt 0:22:56]} 11. Bc2 {[%emt 0:07:47]} Nxd5 {[%emt 0:03:51]} 12. exd5 {[%emt 0:00:06]} Bb6 13. b4 {[%emt 0:02:19]} Nb7 {[%emt 0:06:11]} 14. d4 {[%emt 0:03:33]} Bg4 {[%emt 0:02:02]} 15. Qd3 {[%emt 0:04:38]} f5 {[%emt 0:01:39]} 16. dxe5 {[%emt 0:00:49]} Bxf3 {[%emt 0:04:38]} 17. Qxf3 {[%emt 0:00:09]} dxe5 {[%emt 0:00:21]} 18. Bxf5 {[%emt 0:00:44]} Nd6 {[%emt 0:08:31]} 19. Be6+ {[%emt 0:02:47]} Kh8 {[%emt 0:00:01]} 20. Qe2 {[%emt 0:05:14]} Nc4 {[%emt 0:09:47]} 21. a4 {[%emt 0:06:37]} Qf6 {[%emt 0:17:08]} 22. axb5 axb5 {[%emt 0:00:29]} 23. Rxa8 {[%emt 0:08:47]} Rxa8 {[%emt 0:00:01]} 24. Bd7 Nd6 {[%emt 0:06:47]} 25. Be3 {[%emt 0:12:03]} Bxe3 26. Qxe3 {[%emt 0:02:44]} Ra3 {[%emt 0:06:30]} 27. Qc5 Ne4 {[%emt 0:05:25]} 28. Qxc7 {[%emt 0:07:36]} Rxc3 {[%emt 0:00:07]} 29. Qb8+ {[%emt 0:00:31]} Kh7 30. Qxb5 {[%emt 0:00:47]} Nd2 {[%emt 0:02:37]} 31. Rd1 {[%emt 0:09:11]} Qg5 {[%emt 0:01:56]} 32. Qe2 {[%emt 0:04:13]} Nf3+ {[%emt 0:00:37]} 33. Kh1 {[%emt 0:00:28]} Nh4 {[%emt 0:01:43] normal} 1-0